Cogmind - Beta 15 @@@ ROGUE MODE // 2025.05.27 @ 11:36:12 Player: Rohain Result: Destroyed by as-44367 with Assembled Blade Performance ------------- Evolutions (0) 0 Regions Visited (4) 800 Robots Destroyed (10) 50 Value Destroyed (276) 276 Prototype IDs (2) 40 Alien Tech Used (0) 0 Bonus (0) 0 TOTAL SCORE: 1166 Bonus ------- None Cogmind --------- Core Integrity 0/250 Matter 280/300 Energy 70/250 System Corruption 2% Temperature Cool (53) Movement Walking (120) Location -9/Mines Parts ------- > --- POWER (1) -------- Ion Engine > --- PROPULSION (2) --- Aluminum Leg Aluminum Leg > --- UTILITY (2) ------ Small Storage Unit Targeting Computer > --- WEAPON (2) ------- Medium Laser > --- INVENTORY (8) ---- Large Storage Unit Beam Cannon Beam Cannon Beam Cannon Grenade Launcher Peak State ------------ > --- POWER ------------ Light Nuclear Core > --- PROPULSION ------- Aluminum Leg Aluminum Leg > --- UTILITY ---------- Small Storage Unit Targeting Computer > --- WEAPON ----------- Medium Laser Medium Laser > --- INVENTORY -------- Ion Engine Light Ion Engine Light Ion Engine Aluminum Leg Beam Cannon Beam Cannon Beam Cannon Assault Rifle [Rating: 9] Favorites ----------- Power Light Nuclear Core Engine Ion Engine Power Core Light Nuclear Core Propulsion Aluminum Leg Leg Aluminum Leg Utility Small Storage Unit Storage Small Storage Unit Processor Targeting Computer Weapon Medium Laser Energy Gun Medium Laser Build | -11 -10 -10 -10 -9 ------- Run | Yrd Mat Min Exi Min Slots Evolved . | . . . . . Power . | . . . . . Propulsion . | . . . . . Utility . | . . . . . Weapon . | . . . . . Parts Attached 13 | 6 3 . . 4 Power 4 | 1 2 . . 1 Engine 3 | 1 1 . . 1 Core 1 | . 1 . . . Reactor . | . . . . . Propulsion 5 | 2 . . . 3 Treads . | . . . . . Leg 5 | 2 . . . 3 Wheel . | . . . . . Hover . | . . . . . Flight . | . . . . . Utility 2 | 1 1 . . . Device . | . . . . . Storage 1 | 1 . . . . Processor 1 | . 1 . . . Hackware . | . . . . . Protection . | . . . . . Artifact . | . . . . . Weapon 2 | 2 . . . . Energy Gun 2 | 2 . . . . Energy Cannon . | . . . . . Ballistic Gun . | . . . . . Ballistic Cannon . | . . . . . Launcher . | . . . . . Special Weapon . | . . . . . Impact Weapon . | . . . . . Slashing Weapon . | . . . . . Piercing Weapon . | . . . . . Special Melee Weapon . | . . . . . Unidentified Prototypes . | . . . . . Parts Lost 5 | . . . . 5 Power 1 | . . . . 1 Propulsion 3 | . . . . 3 Utility . | . . . . . Weapon 1 | . . . . 1 Highest Loss Streak 4 | . . . . 4 To Critical Strikes . | . . . . . Average Backups 7 | 1 6 8 8 8 Power 1 | . 2 1 1 1 Propulsion 1 | . . 1 2 2 Utility . | . . . 1 1 Weapon 3 | . 3 4 4 4 Tool/Special . | . . . . . Unused Backups 8 | . 1 2 . 5 Power 1 | . . 1 . . Propulsion . | . . . . . Utility 1 | . . . . 1 Weapon 6 | . 1 1 . 4 Tool/Special . | . . . . . Average Slot Usage (%) 94 | . 88 100 100 91 Engine 5 | . 13 . . 2 Core 8 | . . 14 14 12 Leg 27 | . 28 28 28 20 Storage 14 | . 14 14 14 14 Processor 9 | . 2 14 14 14 Energy Gun 28 | . 28 28 28 28 Peak Build Rating 9 | 6 9 9 9 9 Average Rating 7 | 4 6 9 9 8 On Entrance 6 | . 6 9 9 9 Naked Turns . | . . . . . Heaviest Build 14 | 12 14 14 14 14 Greatest Support 20 | 20 20 20 20 20 Greatest Overweight (x) 1 | . . . . 1 Average Overweight (x) . | . . . . . Largest Inventory Capacity 8 | 8 8 8 8 8 Average Capacity 7 | 7 8 8 8 8 Most Carried 8 | 4 8 8 8 8 Average Carried 7 | 1 7 7 8 7 Final Capacity 8 | 8 8 8 8 8 Final Carried 8 | 2 8 8 8 5 Class Distribution -------------------- 100% | Mutant Dominant Class ---------------- Mutant | -10/Materials Mutant | -10/Mines Mutant | -10/Exiles Mutant | -9/Mines Resources | -11 -10 -10 -10 -9 ----------- Run | Yrd Mat Min Exi Min Matter Collected 350 | 260 30 10 . 50 Remotely . | . . . . . Salvage Created 317 | . 243 35 . 39 Parts 14 | . 10 2 . 2 Haulers Intercepted . | . . . . . Recyclers Shooed . | . . . . . Parts Field Recycled . | . . . . . Retrieved Matter . | . . . . . Parts Self-Destructed . | . . . . . Prevented . | . . . . . Kills | -11 -10 -10 -10 -9 ------- Run | Yrd Mat Min Exi Min Combat Hostiles Destroyed 10 | . 5 3 . 2 Guns 10 | . 5 3 . 2 Classes Destroyed 4 | . 2 1 . 1 Watcher 1 | . 1 . . . Swarmer 3 | . . 3 . . Grunt 6 | . 5 . . 1 Assembled 1 | . . . . 1 Best Kill Streak 3 | . 2 3 . 1 Combat Bots Only 3 | . 2 3 . 1 Max Kills in Single Turn 2 | . 1 2 . 1 Gunslinging 1 | . . 1 . . Exploded . | . . . . . Melee . | . . . . . Uniques/NPCs Destroyed . | . . . . . Combat | -11 -10 -10 -10 -9 -------- Run | Yrd Mat Min Exi Min Hostile Shots Fired 79 | . 22 12 . 45 Missed 24 | . 6 4 . 14 Hits 55 | . 16 8 . 31 Melee 3 | . . . . 3 Projectile 52 | . 16 8 . 28 Critical Strikes 2 | . 1 . . 1 Damage Taken 737 | . 211 61 . 465 Core 262 | . 77 20 . 165 Absorbed by Shields . | . . . . . Core Remaining (%) 100 | 100 . . . . Volleys Fired 34 | . 19 7 . 8 Largest 2 | . 2 2 . 2 Hottest 100 | . 100 100 . 100 Shots Fired 68 | . 38 14 . 16 Gun 68 | . 38 14 . 16 Cannon . | . . . . . Launcher . | . . . . . Special . | . . . . . Kinetic . | . . . . . Thermal 68 | . 38 14 . 16 Explosive . | . . . . . Electromagnetic . | . . . . . Robot Hit Streak 8 | . 8 5 . 4 Robot Miss Streak 4 | . 4 2 . 1 Penetration Max . | . . . . . Secondary Targets 2 | . . 1 . 1 Max Gunslinging Chain 1 | . . 1 . 1 Shots Hit Robots 46 | . 26 10 . 10 Core Hits 18 | . 12 3 . 3 Critical Kills . | . . . . . Critical Parts Destroyed . | . . . . . Critical Strikes 1 | . 1 . . . Burn 1 | . 1 . . . Melee Attacks . | . . . . . Impact . | . . . . . Slashing . | . . . . . Piercing . | . . . . . Sneak Attacks . | . . . . . Combat Hostiles . | . . . . . Follow-up Attacks . | . . . . . Damage Inflicted 604 | . 340 128 . 136 Guns 604 | . 340 128 . 136 Cannons . | . . . . . Explosions . | . . . . . Melee . | . . . . . Ramming . | . . . . . Kinetic . | . . . . . Thermal 604 | . 340 128 . 136 Explosive . | . . . . . Electromagnetic . | . . . . . Impact . | . . . . . Slashing . | . . . . . Piercing . | . . . . . Highest Corruption 2 | . 2 2 2 2 Average Corruption 2 | . 2 2 2 2 Corruption Purged . | . . . . . Corruption Blocked . | . . . . . Effects 9 | . 4 1 4 . Message Errors 3 | . 1 1 1 . Matter Fused 2 | . 1 . 1 . Heat Flow Errors 2 | . 1 . 1 . Parts Fused 1 | . . . 1 . Data Loss (minor) 1 | . 1 . . . Overload Shots . | . . . . . Overflow Damage . | . . . . . Projectiles . | . . . . . Explosions . | . . . . . Melee . | . . . . . Knockbacks . | . . . . . Impact . | . . . . . Kinetic . | . . . . . Secondary . | . . . . . Self-Inflicted Damage . | . . . . . Shots . | . . . . . Rammed . | . . . . . Targets Rammed . | . . . . . Kicked . | . . . . . Crushed . | . . . . . Highest Temperature 390 | . 284 315 127 390 Average Temperature 131 | . 104 153 69 183 Received Heat Transfer 307 | . 132 . . 175 Effects 2 | . . 1 . 1 Shutdowns 1 | . . 1 . . Matter Decay 1 | . . . . 1 Siege Activations . | . . . . . Martial Activations . | . . . . . Shielding Activations . | . . . . . Robots Disrupted . | . . . . . Combat Hostiles . | . . . . . Robots Corrupted . | . . . . . Combat Hostiles . | . . . . . Parts Fried . | . . . . . Impact Corruptions . | . . . . . Robots Melted . | . . . . . Combat Hostiles . | . . . . . Parts Melted 5 | . 4 . . 1 Heat Transferred 1850 | . 1073 370 . 407 Parts Sabotaged . | . . . . . Parts Stolen . | . . . . . Parts Stripped . | . . . . . Power Chain Reactions . | . . . . . Alert | -11 -10 -10 -10 -9 ------- Run | Yrd Mat Min Exi Min Maximum Alert Level . | . . . . . Low Security (%) 100 | 100 100 100 . 100 Level 1 . | . . . . . Level 2 . | . . . . . Level 3 . | . . . . . Level 4 . | . . . . . Level 5 . | . . . . . High Security . | . . . . . Max Security . | . . . . . Peak Influence 70 | . 55 70 . 20 Initial 13 | . . 13 . . Average 13 | . 14 18 . 3 Influence Increases 251 | . 161 70 . 20 Destroy 0b10 Robot/C 180 | . 100 60 . 20 Destroy 0b10 Robot/NC 5 | . 5 . . . Destroy Leader 42 | . 32 10 . . Successful Hack 9 | . 9 . . . Lose Combat Pursuer 15 | . 15 . . . Influence Decreases 251 | . 127 84 20 20 Entered New Map 41 | . . 21 20 . Time Decay 210 | . 127 63 . 20 Squads Dispatched 1 | . 1 . . . Investigation . | . . . . . Extermination . | . . . . . Reinforcement 1 | . 1 . . . Assault . | . . . . . Garrison . | . . . . . Intercept . | . . . . . Searches Triggered . | . . . . . Construction Impeded . | . . . . . Haulers Reinforced . | . . . . . Active Scanning Responses . | . . . . . Cargo Convoy Interrupts . | . . . . . Stealth | -11 -10 -10 -10 -9 --------- Run | Yrd Mat Min Exi Min Distress Signals . | . . . . . Communications Jammed . | . . . . . Distress Signals . | . . . . . Times Spotted 25 | . 10 3 . 12 Peak Tracking Total 11 | . 2 3 . 11 Tactical Retreats 1 | . 1 . . . Traps | -11 -10 -10 -10 -9 ------- Run | Yrd Mat Min Exi Min Traps Triggered 2 | . 2 . . . Indirectly . | . . . . . Trap Hack Attempts . | . . . . . Triggered . | . . . . . Disarmed . | . . . . . Reprogrammed . | . . . . . Reused . | . . . . . Traps Extracted . | . . . . . Installed . | . . . . . Triggered . | . . . . . Machines | -11 -10 -10 -10 -9 ---------- Run | Yrd Mat Min Exi Min Machines Disabled . | . . . . . Max in Single Turn . | . . . . . Machines Repaired . | . . . . . Machines Dismantled . | . . . . . Machines Sabotaged . | . . . . . Overloaded Fab Kills . | . . . . . Hacking | -11 -10 -10 -10 -9 --------- Run | Yrd Mat Min Exi Min Machines Accessed 3 | . 3 . . . Terminals 3 | . 3 . . . Fabricators . | . . . . . Repair Stations . | . . . . . Recycling Units . | . . . . . Scanalyzers . | . . . . . Garrison Access . | . . . . . Total Hacks 7 | . 7 . . . Successful 4 | . 4 . . . Failed 3 | . 3 . . . Catastrophic 1 | . 1 . . . Database Lockouts . | . . . . . Manual 5 | . 5 . . . Terminals 7 | . 7 . . . Fabricators . | . . . . . Repair Stations . | . . . . . Recycling Units . | . . . . . Scanalyzers . | . . . . . Garrison Access . | . . . . . Terminal Hacks 1 | . 1 . . . Prototype ID Bank 1 | . 1 . . . Fabricator Hacks . | . . . . . Repair Station Hacks . | . . . . . Recycling Unit Hacks . | . . . . . Scanalyzer . | . . . . . Garrison Access Hacks . | . . . . . Unauthorized Hacks 3 | . 3 . . . Terminals 3 | . 3 . . . Botnet 3 | . 3 . . . Fabricators . | . . . . . Repair Stations . | . . . . . Recycling Units . | . . . . . Scanalyzers . | . . . . . Garrison Access . | . . . . . Data Cores Recovered . | . . . . . Used . | . . . . . Hacking Detections 2 | . 2 . . . Full Trace Events . | . . . . . Feedback Events . | . . . . . Feedback Blocked . | . . . . . Robot Schematics Acquired . | . . . . . Robots Built . | . . . . . Authchips . | . . . . . Time . | . . . . . Total Robot Build Rating . | . . . . . Part Schematics Acquired . | . . . . . Parts Built . | . . . . . Authchips . | . . . . . Time . | . . . . . Total Part Build Rating . | . . . . . Parts Repaired . | . . . . . Time . | . . . . . Parts Recycled . | . . . . . Recycled Matter . | . . . . . Retrieved Matter . | . . . . . Retrieved Components . | . . . . . Parts Scanalyzed . | . . . . . Part Schematics Acquired . | . . . . . Parts Damaged . | . . . . . Bothacking | -11 -10 -10 -10 -9 ------------ Run | Yrd Mat Min Exi Min Used RIF Installer . | . . . . . Robots Hacked . | . . . . . Non-combat . | . . . . . Combat . | . . . . . Robot Hacks Applied . | . . . . . Relay Couplers Released . | . . . . . Fabnet Peak Effective % . | . . . . . Robots Rewired . | . . . . . Allies Hacked . | . . . . . Hacks Repelled . | . . . . . Allies | -11 -10 -10 -10 -9 -------- Run | Yrd Mat Min Exi Min Total Allies . | . . . . . Largest Group . | . . . . . Highest-Rated Group . | . . . . . Highest-Rated Ally . | . . . . . Total Orders . | . . . . . Ally Attacks . | . . . . . Total Damage . | . . . . . Kills . | . . . . . Allies Corrupted . | . . . . . Allies Melted . | . . . . . Intel | -11 -10 -10 -10 -9 ------- Run | Yrd Mat Min Exi Min Active Infowar (turns) . | . . . . . Robot Analysis Total . | . . . . . Derelict Logs Recovered 2 | . . 2 . . Drone Launches . | . . . . . Drone Recoveries . | . . . . . Exploration | -11 -10 -10 -10 -9 ------------- Run | Yrd Mat Min Exi Min Turns Passed 1251 | 57 463 273 399 59 Spaces Moved 914 | 42 309 207 333 23 Core 7 | 7 . . . . Treads . | . . . . . Legs 907 | 35 309 207 333 23 Wheels . | . . . . . Hover . | . . . . . Flight . | . . . . . Fastest Speed 50 | 50 120 120 120 120 Average Speed 119 | 108 120 120 120 129 Slowest Speed 190 | 120 120 120 120 190 Overloaded Moves . | . . . . . Propulsion Burnouts . | . . . . . Robots Hopped . | . . . . . Potential Cave-ins . | . . . . . Cave-ins Triggered . | . . . . . Exploration Rate (%) 39 | 5 53 54 78 8 Regions Visited 4 Branch Regions 3 Pre-discovered Areas . | . . . . . Known Exits Taken . | . . . . . Unknown Exits Taken 4 | 1 1 1 1 . Scrap Searched 1 | . . 1 . . Spaces Dug . | . . . . . Terrain Destroyed . | . . . . . Melee . | . . . . . Projectile . | . . . . . AOE . | . . . . . Terrain Rammed . | . . . . . Walls Destroyed . | . . . . . Machines Disabled . | . . . . . Actions | -11 -10 -10 -10 -9 --------- Run | Yrd Mat Min Exi Min Total 1000 | 51 363 219 332 35 Wait 24 | . 24 . . . Move 910 | 41 308 206 332 23 Hop . | . . . . . Pick Up 14 | 4 7 3 . . Fast Attach 6 | 4 1 . . 1 Attach 5 | 2 . . . 3 Detach . | . . . . . Swap 2 | . 2 . . . Drop 5 | . 2 3 . . Fire 34 | . 19 7 . 8 Melee . | . . . . . Ram . | . . . . . Kick . | . . . . . Crush . | . . . . . Escape Stasis . | . . . . . Rewire . | . . . . . Trap . | . . . . . Miscellaneous . | . . . . . Route ------- -11/Scrapyard -10/Materials (discovered 4 exits: [*Mat] / [*Min x2] / [*Sub]) -10/Mines (discovered 3 exits: [*Mat x2] / *Exi) -10/Exiles (discovered 2 exits: [*Min x2]) -9/Mines History --------- Turn | Location | Event 26 | -11/Scrapyard | Discovered new exit (range 15) 58 | -11/Scrapyard | Entered Materials 305 | -10/Materials | Discovered new exit (range 9) 314 | -10/Materials | Build established: Mutant 323 | -10/Materials | Discovered new exit (range 6) 370 | -10/Materials | Discovered new exit (range 14) 457 | -10/Materials | Discovered new exit (range 16) 521 | -10/Materials | Entered Mines 581 | -10/Mines | Discovered new exit (range 7) 603 | -10/Mines | Learned Materials garrison access intel 621 | -10/Mines | Found DCF Scrap (11 items) 707 | -10/Mines | Discovered new exit (range 14) 789 | -10/Mines | Deemed a non-threat by the Exiles lab entrance 789 | -10/Mines | Discovered new exit (range 5) 794 | -10/Mines | Entered Exiles 812 | -10/Exiles | Discovered new exit (range 15) 838 | -10/Exiles | Met 8R-AWN 854 | -10/Exiles | Met EX-HEX 925 | -10/Exiles | Met EX-DEC 979 | -10/Exiles | Visited The Gauntlet 1182 | -10/Exiles | Discovered new exit (range 10) 1193 | -10/Exiles | Entered Mines 1194 | -9/Mines | Assembled infested the area 1199 | -9/Mines | Assisted by a Guerilla fighting off Assembled 1205 | -9/Mines | Core integrity fell below 50% 1247 | -9/Mines | Core integrity fell below 20% 1252 | -9/Mines | Destroyed by as-44367 with Assembled Blade Last Messages --------------- 01202_ HV Slug penetrates Wall. 01204_ Knocked back. 01205_ Acquired 1 matter. 01206_ HV Slug penetrates Wall. 01206_ HV Slug penetrates Earth. 01208_ HV Slug penetrates G-34 Mercenary. 01211_ Heat Sink melted. 01211_ G-34 Mercenary destroyed. 01216_ Overheating: Matter decay (-39). 01216_ Acquired 39 matter. 01220_ Acquired Aluminum Leg. 01222_ Acquired 10 matter. 01225_ HV Slug penetrates Wall. 01245_ Critical hit (Burn: +80). 01246_ as-75147 destroyed. 01246_ Switching to secondary target: as-64310. 01247_ Lgt. Nuclear Core destroyed. 01248_ Aluminum Leg destroyed. 01250_ Med. Laser destroyed. 01250_ Aluminum Leg destroyed. Map ----- +----------------------------------------------------+ | ??????????????????????????????????????????? | | ??????????????????????????????????????????? | | ??????????????????????????????????????????? | | ??????????????????????????????????????????? | | ??????????????????????????????????????????? | | ??????????????????????????????????????????? | | ??????????????????????????????????????????? | | ??????????????????????????????????????????? | | ??????????????????????????????????????????? | | ??????????????????????????????????????????? | | ???????????????????????????????###????????? | | ???????????????????????????????# ##???????? | | ???????????????????????????????# #???????? | | ?????????????????????????????### #???????? | | ?????????????????????????????#"#""######??? | | ??????????????????????????????#%%[ #??? | | ??????????????????#???????????# #??? | | ??????????????????# ??????????#%[% #??? | | ??????????????????# ?????????# * #??? | | ??????????????????#